fUSD/lending_fUSD_20250415
["ID","MTS","AMOUNT","RATE_DAILY","PERIOD"]
[358110573,1744731042842,-945.67,0.00017999,2]
[358110574,1744731042853,-945.67,0.00017999,2]
[358110575,1744731042863,-945.67,0.00017999,2]
[358110576,1744731042874,-945.67,0.00017999,2]
[358110577,1744731042884,-945.67,0.00017999,2]
[358110578,1744731042894,-945.67,0.00017999,2]
[358110579,1744731042905,-209.50751136,0.00017999,2]
[358110597,1744731044621,-736.16248864,0.00017999,2]
[358110598,1744731044630,-945.67,0.00017999,2]
[358110599,1744731044639,-945.67,0.00017999,2]
[358110600,1744731044649,-5227.69267648,0.00018,2]
[358110601,1744731045164,-319.38337213,0.00017999,2]
[358110602,1744731045398,4663.36921714,0.000171,2]
[358110604,1744731045646,-626.28662787,0.00017999,2]
[358110605,1744731045656,-173.71337213,0.00017999,2]
[358110606,1744731045715,-365.96934313,0.00017999,2]
[358110607,1744731045759,-406.18235363,0.00017999,2]
[358110608,1744731045769,-1871.0540262,0.00018,2]
[358110609,1744731045781,-8524.92475953,0.00018,2]
[358110610,1744731045807,-384.68847982,0.00018,2]
[358110611,1744731045850,-4278.28367699,0.00018,2]
[358110612,1744731045989,-2613.52878922,0.00018,2]
[358110614,1744731129342,410.21,0.00016908,2]
[358110615,1744731314366,164.32,0.00017177,2]
[358110616,1744731410398,250.0,0.00017259,2]
[358110617,1744731427162,250.0,0.00017233,2]
[358110618,1744731520423,1009.43,0.00015188,2]
[358110619,1744731520652,1009.43,0.00017452,2]
[358110620,1744731821587,1000.0,0.00017092,2]
[358110622,1744732029302,250.0,0.00017,2]
[358110623,1744732034038,150.08461781,0.00017092,2]
[358110624,1744732069824,250.0,0.00017,2]
[358110625,1744732076229,190.4,0.00016948,2]
[358110627,1744732138735,-217.44632259,0.000176,2]
[358110629,1744732138778,-250.0,0.00017611,2]
[358110631,1744732138819,-2076.52463247,0.00017622,2]
[358110634,1744732147783,205.1,0.00016943,2]
[358110642,1744732231978,-151.86,0.00017748,2]
[358110643,1744732231988,-250.0,0.00017774,2]
[358110644,1744732231998,-200.0,0.00017856,2]
[358110645,1744732232008,-18035.4459025,0.00017886,2]
[358110646,1744732232066,-7313.32491319,0.00017886,2]
[358110653,1744732238213,-218288.41341964,0.00017886,2]
[358110654,1744732238224,-651.19747975,0.00017886,2]
[358110655,1744732238235,-7217.03000227,0.00017886,2]
[358110656,1744732238290,-17209.03609674,0.00017886,2]
[358110666,1744732240291,-158761.8285147,0.00017886,2]
[358110667,1744732240563,-34073.95008621,0.00017886,2]
[358110668,1744732240574,-315.8545,0.00017886,2]
[358110669,1744732240584,-300.0,0.00017898,2]
[358110670,1744732240594,-300.0,0.00017898,2]
[358110671,1744732240604,-155.765,0.00017899,2]
[358110672,1744732240614,-500.0,0.00017899,2]
[358110673,1744732240624,-382.4543,0.00017899,2]
[358110674,1744732240634,-2500.0,0.00017899,2]
[358110675,1744732240644,-1672.33583712,0.00017899,2]
[358110676,1744732240654,-2257.84471038,0.00017899,2]
[358110677,1744732240664,-1672.3358371,0.00017899,2]
[358110678,1744732240674,-1672.3358371,0.00017899,2]
[358110679,1744732240684,-1672.3358371,0.00017899,2]
[358110680,1744732240694,-1672.3358371,0.00017899,2]
[358110681,1744732240703,-1672.3358371,0.000179,2]
[358110682,1744732240713,-1672.3358371,0.000179,2]
[358110683,1744732240723,-1672.3358371,0.000179,2]
[358110684,1744732240732,-1672.3358371,0.000179,2]
[358110685,1744732240742,-721.0723,0.000179,2]
[358110686,1744732240751,-786.3106,0.000179,2]
[358110687,1744732240761,-269.7884,0.000179,2]
[358110688,1744732240771,-981.7133,0.000179,2]
[358110689,1744732240780,-161.7485,0.000179,2]
[358110690,1744732240790,-755.1642,0.000179,2]
[358110691,1744732240799,-858.3166,0.000179,2]
[358110692,1744732240809,-2305.18356836,0.000179,2]
[358110693,1744732240818,-156.0674386,0.000179,2]
[358110695,1744732240827,-1672.3358371,0.000179,2]
[358110696,1744732240836,-175.51614441,0.000179,2]
[358110697,1744732240845,-173.664,0.00017951,2]
[358110698,1744732240855,-500.0,0.00017973,2]
[358110699,1744732240866,-548.82592614,0.00017973,2]
[358110700,1744732240876,-500.0,0.00017973,2]
[358110701,1744732240885,-500.0,0.00017973,2]
[358110702,1744732240895,-502.5045184,0.00017973,2]
[358110703,1744732240904,-500.0,0.00017973,2]
[358110704,1744732240913,-500.0,0.00017973,2]
[358110705,1744732240923,-1202.332,0.00017973,2]
[358110706,1744732240932,-465.52331498,0.00017985,2]
[358110707,1744732240942,-1416.7282895,0.00017986,2]
[358110708,1744732240952,-1727.1099698,0.00017986,2]
[358110709,1744732240962,-2443.6151096,0.00017986,2]
[358110710,1744732240972,-32049.7692199,0.00017986,2]
[358110711,1744732240981,-152.17,0.00017989,2]
[358110712,1744732240990,-152.17,0.00017989,2]
[358110713,1744732240999,-152.17,0.00017989,2]
[358110714,1744732241009,-255.55020209,0.00017989,2]
[358110715,1744732241019,-668.65185757,0.00017989,2]
[358110716,1744732241028,-207.4,0.00017989,2]
[358110717,1744732241037,-152.17,0.0001799,2]
[358110718,1744732241047,-256.19765915,0.0001799,2]
[358110719,1744732241057,-152.17,0.0001799,2]
[358110720,1744732241067,-152.17,0.0001799,2]
[358110721,1744732241076,-152.17,0.0001799,2]
[358110722,1744732241085,-152.17,0.0001799,2]
[358110723,1744732241095,-500.0,0.00017998,2]
[358110724,1744732241104,-500.0,0.00017998,2]
[358110725,1744732241114,-150.0,0.00017998,2]
[358110726,1744732241124,-150.0,0.00017998,2]
[358110727,1744732241134,-150.0,0.00017998,2]
[358110728,1744732241144,-500.0,0.00017998,2]
[358110729,1744732241154,-500.0,0.00017998,2]
[358110730,1744732241163,-500.0,0.00017998,2]
[358110731,1744732241173,-500.0,0.00017998,2]
[358110732,1744732241182,-500.0,0.00017998,2]
[358110733,1744732241191,-500.0,0.00017998,2]
[358110734,1744732241200,-500.0,0.00017998,2]
[358110735,1744732241209,-500.0,0.00017998,2]
[358110736,1744732241219,-500.0,0.00017998,2]
[358110737,1744732241228,-500.0,0.00017998,2]
[358110738,1744732241237,-153.13706151,0.00017998,2]
[358110739,1744732241247,-500.0,0.00017998,2]
[358110740,1744732241257,-500.0,0.00017998,2]
[358110741,1744732241266,-150.0,0.00017998,2]
[358110742,1744732241276,-150.0,0.00017998,2]
[358110743,1744732241285,-500.0,0.00017998,2]
[358110744,1744732241295,-367.5112194,0.00017998,2]
[358110745,1744732241304,-500.0,0.00017998,2]
[358110746,1744732241314,-250.0,0.00017998,2]
[358110747,1744732241329,-477.41,0.00017998,2]
[358110748,1744732241338,-500.0,0.00017998,2]
[358110749,1744732241348,-500.0,0.00017998,2]
[358110750,1744732241358,-250.48288695,0.00017998,2]
[358110751,1744732241367,-500.0,0.00017998,2]
[358110752,1744732241377,-500.0,0.00017998,2]
[358110753,1744732241386,-480.93,0.00017998,2]
[358110754,1744732241396,-500.0,0.00017998,2]
[358110755,1744732241406,-254.76079869,0.00017998,2]
[358110756,1744732241419,-719.14568,0.00017998,2]
[358110757,1744732241431,-812.09352131,0.00017998,2]
[358110758,1744732241441,-500.0,0.00017998,2]
[358110759,1744732241452,-745.0,0.00017998,2]
[358110760,1744732241462,-500.0,0.00017998,2]
[358110761,1744732241472,-500.0,0.00017998,2]
[358110762,1744732241481,-150.0,0.00017998,2]
[358110763,1744732241491,-500.0,0.00017999,2]
[358110764,1744732241502,-500.0,0.00017999,2]
[358110765,1744732241512,-575.84990406,0.00017999,2]
[358110766,1744732241522,-500.0,0.00017999,2]
[358110767,1744732241532,-500.0,0.00017999,2]
[358110768,1744732241541,-500.0,0.00017999,2]
[358110769,1744732241550,-508.56581966,0.00017999,2]
[358110770,1744732241559,-336.90805414,0.00017999,2]
[358110771,1744732241569,-500.0,0.00017999,2]
[358110772,1744732241579,-500.0,0.00017999,2]
[358110773,1744732241588,-500.0,0.00017999,2]
[358110774,1744732241598,-500.0,0.00017999,2]
[358110775,1744732241608,-500.0,0.00017999,2]
[358110776,1744732241619,-500.0,0.00017999,2]
[358110777,1744732241629,-244.37318357,0.00017999,2]
[358110786,1744732245836,-243.9821406,0.00017998,2]
[358110787,1744732245845,-150.0,0.00017998,2]
[358110788,1744732245855,-255.62681643,0.00017999,2]
[358110789,1744732245864,-500.0,0.00017999,2]
[358110790,1744732245875,-500.0,0.00017999,2]
[358110791,1744732245885,-500.0,0.00017999,2]
[358110792,1744732245894,-287.18293739,0.00017999,2]
[358110793,1744732245906,-212.81706261,0.00017999,2]
[358110794,1744732245917,-500.0,0.00017999,2]
[358110795,1744732245926,-500.0,0.00017999,2]
[358110796,1744732245937,-500.0,0.00017999,2]
[358110797,1744732245948,-500.0,0.00017999,2]
[358110798,1744732245959,-500.0,0.00017999,2]
[358110799,1744732245968,-500.0,0.00017999,2]
[358110800,1744732245978,-500.0,0.00017999,2]
[358110801,1744732245988,-200.59674441,0.00017999,2]
[358110802,1744732245998,-336.58619298,0.00017999,2]
[358110811,1744732248525,-163.41380702,0.00017999,2]
[358110812,1744732248535,-341.35131217,0.00017999,2]
[358110813,1744732248547,-158.64868783,0.00017999,2]
[358110814,1744732248556,-500.0,0.00017999,2]
[358110815,1744732248566,-500.0,0.00017999,2]
[358110816,1744732248575,-500.0,0.00017999,2]
[358110817,1744732248584,-13.70238431,0.00017999,2]
[358110818,1744732248755,-569.05213461,0.00017999,2]
[358110819,1744732248764,-500.0,0.00017999,2]
[358110820,1744732248774,-500.0,0.00017999,2]
[358110821,1744732248784,-537.22755804,0.00017999,2]
[358110822,1744732248793,-500.0,0.00017999,2]
[358110823,1744732248803,-500.0,0.00017999,2]
[358110824,1744732248812,-500.0,0.00017999,2]
[358110825,1744732248822,-500.0,0.00017999,2]
[358110826,1744732248831,-337.12744444,0.00017999,2]
[358110827,1744732248843,-162.87255556,0.00017999,2]
[358110828,1744732248853,-339.62744444,0.00017999,2]
[358110829,1744732248873,-160.37255556,0.00017999,2]
[358110830,1744732248884,-208.2554537,0.00017999,2]
[358110831,1744732248899,-291.7445463,0.00017999,2]
[358110832,1744732248908,-162.90067329,0.00017999,2]
[358110833,1744732251216,-85.87932671,0.00017999,2]
[358110834,1744732251226,-500.0,0.00017999,2]
[358110835,1744732251236,-500.0,0.00017999,2]
[358110836,1744732251245,-500.0,0.00017999,2]
[358110837,1744732251255,-500.0,0.00017999,2]
[358110838,1744732251264,-500.0,0.00017999,2]
[358110839,1744732251274,-500.0,0.00017999,2]
[358110840,1744732251284,-500.0,0.00017999,2]
[358110841,1744732251293,-500.0,0.00017999,2]
[358110842,1744732251303,-500.0,0.00017999,2]
[358110843,1744732251313,-500.0,0.00017999,2]
[358110844,1744732251325,-500.0,0.00017999,2]
[358110845,1744732251334,-500.0,0.00017999,2]
[358110846,1744732251344,-500.0,0.00017999,2]
[358110847,1744732251354,-500.0,0.00017999,2]
[358110848,1744732251363,-500.0,0.00017999,2]
[358110849,1744732251374,-500.0,0.00017999,2]
[358110850,1744732251386,-500.0,0.00017999,2]
[358110851,1744732251395,-500.0,0.00017999,2]
[358110852,1744732251406,-500.0,0.00017999,2]
[358110853,1744732251415,-500.0,0.00017999,2]
[358110854,1744732251425,-500.0,0.00017999,2]
[358110855,1744732251434,-500.0,0.00017999,2]
[358110856,1744732251443,-500.0,0.00017999,2]
[358110857,1744732251452,-500.0,0.00017999,2]
[358110858,1744732251462,-500.0,0.00017999,2]
[358110859,1744732251471,-500.0,0.00017999,2]
[358110860,1744732251480,-500.0,0.00017999,2]
[358110861,1744732251489,-402.37,0.00017999,2]
[358110862,1744732251499,-500.0,0.00017999,2]
[358110863,1744732251508,-500.0,0.00017999,2]
[358110864,1744732251517,-500.0,0.00017999,2]
[358110865,1744732251527,-500.0,0.00017999,2]
[358110866,1744732251537,-306.40127736,0.00017999,2]
[358110867,1744732251546,-500.0,0.00017999,2]
[358110868,1744732251555,-500.0,0.00017999,2]
[358110869,1744732251564,-500.0,0.00017999,2]
[358110870,1744732251573,-500.0,0.00017999,2]
[358110871,1744732251583,-500.0,0.00017999,2]
[358110872,1744732251592,-160.84,0.00017999,2]
[358110873,1744732251601,-500.0,0.00017999,2]
[358110874,1744732251611,-500.0,0.00017999,2]
[358110875,1744732251621,-500.0,0.00017999,2]
[358110876,1744732251631,-500.0,0.00017999,2]
[358110877,1744732251640,-500.0,0.00017999,2]
[358110878,1744732251650,-500.0,0.00017999,2]
[358110879,1744732251659,-500.0,0.00017999,2]
[358110880,1744732251668,-500.0,0.00017999,2]
[358110881,1744732251678,-500.0,0.00017999,2]
[358110882,1744732251687,-500.0,0.00017999,2]
[358110883,1744732251697,-500.0,0.00017999,2]
[358110884,1744732251706,-500.0,0.00017999,2]
[358110885,1744732251716,-500.0,0.00017999,2]
[358110886,1744732251725,-500.0,0.00017999,2]
[358110887,1744732251733,-2460.58,0.00017999,2]
[358110888,1744732251742,-500.0,0.00017999,2]
[358110889,1744732251751,-2460.58,0.00017999,2]
[358110890,1744732251761,-2460.58,0.00017999,2]
[358110891,1744732251770,-2460.58,0.00017999,2]
[358110892,1744732251779,-2460.58,0.00017999,2]
[358110893,1744732251788,-2460.58,0.00017999,2]
[358110894,1744732251797,-2460.58,0.00017999,2]
[358110895,1744732251806,-2460.58,0.00017999,2]
[358110896,1744732251816,-2460.58,0.00017999,2]
[358110897,1744732251825,-2460.58,0.00017999,2]
[358110898,1744732251835,-2460.58,0.00017999,2]
[358110899,1744732251845,-2460.58,0.00017999,2]
[358110900,1744732251854,-2460.58,0.00017999,2]
[358110901,1744732251864,-2460.58,0.00017999,2]
[358110902,1744732251874,-2460.58,0.00017999,2]
[358110903,1744732251884,-2460.58,0.00017999,2]
[358110904,1744732251894,-2460.58,0.00017999,2]
[358110905,1744732251904,-2460.58,0.00017999,2]
[358110906,1744732251913,-2460.58,0.00017999,2]
[358110907,1744732251923,-2460.58,0.00017999,2]
[358110908,1744732251932,-2460.58,0.00017999,2]
[358110909,1744732251941,-2460.58,0.00017999,2]
[358110910,1744732251949,-2460.58,0.00017999,2]
[358110911,1744732251957,-2460.625484,0.00017999,2]
[358110912,1744732251965,-500.0,0.00017999,2]
[358110913,1744732251974,-500.0,0.00017999,2]
[358110914,1744732251982,-500.0,0.00017999,2]
[358110915,1744732251991,-500.0,0.00017999,2]
[358110916,1744732251999,-500.0,0.00017999,2]
[358110917,1744732252008,-500.0,0.00017999,2]
[358110918,1744732252017,-500.0,0.00017999,2]
[358110919,1744732252026,-500.0,0.00017999,2]
[358110920,1744732252034,-500.0,0.00017999,2]
[358110921,1744732252042,-188.37,0.00017999,2]
[358110922,1744732252051,-500.0,0.00017999,2]
[358110923,1744732252060,-368.72676784,0.00017999,2]
[358110924,1744732252069,-500.0,0.00017999,2]
[358110925,1744732252078,-500.0,0.00017999,2]
[358110926,1744732252087,-500.0,0.00017999,2]
[358110927,1744732252095,-500.0,0.00017999,2]
[358110928,1744732252104,-500.0,0.00017999,2]
[358110929,1744732252113,-500.0,0.00017999,2]
[358110930,1744732252123,-500.0,0.00017999,2]
[358110931,1744732252134,-176.25,0.00017999,2]
[358110932,1744732252144,-500.0,0.00017999,2]
[358110933,1744732252153,-500.0,0.00017999,2]
[358110934,1744732252162,-500.0,0.00017999,2]
[358110935,1744732252171,-500.0,0.00017999,2]
[358110936,1744732252180,-500.0,0.00017999,2]
[358110937,1744732252190,-500.0,0.00017999,2]
[358110938,1744732252196,-500.0,0.00017999,2]
[358110939,1744732252203,-500.0,0.00017999,2]
[358110940,1744732252213,-500.0,0.00017999,2]
[358110941,1744732252222,-178.61136733,0.00017999,2]
[358110942,1744732252231,-500.0,0.00017999,2]
[358110943,1744732252240,-500.0,0.00017999,2]
[358110944,1744732252250,-500.0,0.00017999,2]
[358110945,1744732252259,-500.0,0.00017999,2]
[358110946,1744732252268,-599.66,0.00017999,2]
[358110947,1744732252277,-500.0,0.00017999,2]
[358110948,1744732252286,-500.0,0.00017999,2]
[358110949,1744732252295,-621.23241965,0.00017999,2]
[358110950,1744732252305,-500.0,0.00017999,2]
[358110951,1744732252314,-500.0,0.00017999,2]
[358110952,1744732252327,-500.0,0.00017999,2]
[358110953,1744732252336,-500.0,0.00017999,2]
[358110954,1744732252345,-39.28876774,0.00017999,2]
[358110955,1744732431825,250.0,0.00017033,2]
[358110957,1744732506803,330.01,0.00017,2]
[358110958,1744732508588,330.01,0.00017,2]
[358110959,1744732513931,330.01,0.00017,2]
[358110960,1744732515885,330.01,0.00017,2]
[358110961,1744732517640,330.01,0.00017,2]
[358110962,1744732533077,164.32,0.00017185,2]
[358110963,1744732552526,250.0,0.00017185,2]
[358110964,1744732602185,951.46,0.00015387,2]
[358110966,1744732900713,481.35,0.00016982,2]
[358110967,1744733026865,1000.0,0.00017305,2]
[358110973,1744733321745,-823.07,0.00017509,2]
[358110974,1744733321852,-218.90776977,0.00017599,2]
[358110975,1744733322229,-171.49209413,0.00017637,2]
[358110976,1744733322346,-116.46200055,0.00017651,2]
[358110979,1744733409707,205.02,0.00016932,2]
[358110983,1744733432112,-383.12875825,0.00017651,2]
[358110984,1744733432125,-451.8692412,0.00017651,2]
[358110985,1744733432135,-88.62871468,0.00017685,2]
[358110986,1744733432223,-82.86337944,0.00017685,2]
[358110987,1744733432233,-300.0,0.00017699,2]
[358110988,1744733432243,-848.98794097,0.000177,2]
[358110989,1744733432255,-428.59140228,0.000177,2]
[358110990,1744733432268,-5450.527,0.000177,2]
[358110998,1744733438171,-4708.34717772,0.000177,2]
[358110999,1744733438181,-171.49209412,0.00017733,2]
[358111000,1744733438191,-150.0,0.00017737,2]
[358111001,1744733438201,-150.0,0.00017747,2]
[358111002,1744733438210,-171.49209412,0.00017781,2]
[358111003,1744733438220,-321.62326547,0.00017797,2]
[358111004,1744733438229,-150.0,0.00017802,2]
[358111005,1744733438239,-150.0,0.00017856,2]
[358111006,1744733438249,-12500.0,0.00017874,2]
[358111007,1744733438259,-250.0,0.00017875,2]
[358111008,1744733438270,-150.0,0.00017881,2]
[358111009,1744733438280,-12500.0,0.00017882,2]
[358111010,1744733438290,-207.4,0.00017889,2]
[358111011,1744733438299,-4581.46173863,0.0001789,2]
[358111012,1744733438309,-12500.0,0.00017891,2]
[358111013,1744733438319,-157.7773641,0.00017898,2]
[358111014,1744733438327,-157.77736405,0.00017898,2]
[358111015,1744733438337,-157.77736405,0.00017899,2]
[358111016,1744733438347,-287.9978,0.00017899,2]
[358111017,1744733438356,-1000.0,0.00017899,2]
[358111018,1744733438366,-2500.0,0.00017899,2]
[358111019,1744733438376,-550.0,0.00017899,2]
[358111020,1744733438386,-175.24974531,0.00017899,2]
[358111021,1744733438395,-157.77736405,0.00017899,2]
[358111022,1744733438405,-317.96127505,0.00017899,2]
[358111023,1744733438415,-157.77736405,0.00017899,2]
[358111024,1744733438425,-157.77736405,0.000179,2]
[358111025,1744733438434,-500.0,0.000179,2]
[358111026,1744733438444,-36159.34840332,0.000179,2]
[358111027,1744733438453,-445.9069674,0.000179,2]
[358111028,1744733438463,-205.36577708,0.000179,2]
[358111029,1744733438472,-12500.0,0.000179,2]
[358111030,1744733438481,-2976.04631083,0.000179,2]
[358111031,1744733438491,-175.24974531,0.000179,2]
[358111032,1744733438501,-4930.11453208,0.000179,2]
[358111033,1744733438510,-157.77736405,0.000179,2]
[358111034,1744733438520,-445.90696737,0.00017917,2]
[358111035,1744733438530,-150.0,0.00017926,2]
[358111036,1744733438539,-445.90696737,0.00017933,2]
[358111037,1744733438549,-445.90696737,0.0001795,2]
[358111038,1744733438559,-698.0,0.00017965,2]
[358111039,1744733438568,-235.412,0.00017965,2]
[358111040,1744733438577,-3753.773,0.00017965,2]
[358111041,1744733438587,-1121.0,0.00017965,2]
[358111042,1744733438596,-445.90696737,0.00017966,2]
[358111043,1744733438607,-500.0,0.00017973,2]
[358111044,1744733438616,-500.0,0.00017973,2]
[358111045,1744733438625,-500.0,0.00017973,2]
[358111046,1744733438635,-500.0,0.00017973,2]
[358111047,1744733438644,-639.50354084,0.00017973,2]
[358111048,1744733438654,-668.65185757,0.00017975,2]
[358111049,1744733438665,-174.288,0.00017977,2]
[358111050,1744733438675,-1530.029,0.00017977,2]
[358111052,1744733438684,-445.90696737,0.00017983,2]
[358111054,1744733438696,-3284.8148961,0.00017986,2]
[358111056,1744733438709,-15649.2421978,0.00017986,2]
[358111058,1744733438719,-845.0402082,0.00017986,2]
[358111060,1744733438729,-10194.5861185,0.00017986,2]
[358111061,1744733438739,-688.2069573,0.00017986,2]
[358111062,1744733438750,-642.22,0.00017988,2]
[358111063,1744733438760,-23738.21863481,0.00017997,2]
[358111064,1744733438770,-151.602557,0.00017998,2]
[358111065,1744733438781,-151.602557,0.00017998,2]
[358111066,1744733438791,-423.44789392,0.00017998,2]
[358111067,1744733438804,-76.55210608,0.00017998,2]
[358111068,1744733438814,-506.04140735,0.00017998,2]
[358111069,1744733438824,-416.83613676,0.00017998,2]
[358111070,1744733438836,-83.16386324,0.00017998,2]
[358111071,1744733438845,-179.70608109,0.00017998,2]
[358111072,1744733438855,-271.96002567,0.00017998,2]
[358111073,1744733438869,-228.03997433,0.00017998,2]
[358111074,1744733438878,-500.0,0.00017998,2]
[358111075,1744733438888,-500.0,0.00017998,2]
[358111076,1744733438897,-255.98899026,0.00017998,2]
[358111077,1744733438907,-500.0,0.00017998,2]
[358111078,1744733438916,-500.0,0.00017998,2]
[358111079,1744733438926,-500.0,0.00017998,2]
[358111080,1744733438935,-502.12748363,0.00017998,2]
[358111081,1744733438944,-500.0,0.00017998,2]
[358111082,1744733438955,-503.24136164,0.00017998,2]
[358111083,1744733438965,-262.15719042,0.00017998,2]
[358111085,1744733438983,-237.84280958,0.00017998,2]
[358111086,1744733438993,-500.0,0.00017998,2]
[358111087,1744733439002,-293.91305875,0.00017998,2]
[358111088,1744733439013,-206.08694125,0.00017998,2]
[358111090,1744733439023,-500.22629589,0.00017998,2]
[358111092,1744733439032,-500.0,0.00017998,2]
[358111094,1744733439042,-500.0,0.00017998,2]
[358111096,1744733439052,-252.18114062,0.00017998,2]
[358111098,1744733439061,-1789.0,0.00017998,2]
[358111100,1744733439071,-500.0,0.00017998,2]
[358111102,1744733439081,-500.0,0.00017998,2]
[358111104,1744733439090,-1213.0,0.00017998,2]
[358111105,1744733439099,-337.92127482,0.00017998,2]
[358111106,1744733439111,-322.18663544,0.00017998,2]
[358111107,1744733439120,-500.0,0.00017998,2]
[358111108,1744733439130,-500.0,0.00017998,2]
[358111110,1744733439139,-500.0,0.00017998,2]
[358111112,1744733439149,-500.0,0.00017998,2]
[358111114,1744733439158,-503.12133546,0.00017998,2]
[358111116,1744733439168,-500.0,0.00017998,2]
[358111118,1744733439177,-535.92510622,0.00017998,2]
[358111120,1744733439186,-502.74726066,0.00017998,2]
[358111122,1744733439196,-558.56244935,0.00017998,2]
[358111124,1744733439205,-500.0,0.00017998,2]
[358111126,1744733439215,-500.0,0.00017998,2]
[358111128,1744733439224,-500.0,0.00017998,2]
[358111130,1744733439233,-500.0,0.00017998,2]
[358111132,1744733439242,-500.0,0.00017998,2]
[358111134,1744733439251,-500.0,0.00017998,2]
[358111136,1744733439261,-500.0,0.00017998,2]
[358111138,1744733439273,-554.42203525,0.00017998,2]
[358111140,1744733439283,-500.0,0.00017998,2]
[358111142,1744733439292,-500.0,0.00017998,2]
[358111144,1744733439302,-500.0,0.00017998,2]
[358111146,1744733439311,-500.0,0.00017998,2]
[358111147,1744733439321,-500.0,0.00017998,2]
[358111148,1744733439331,-540.94462221,0.00017998,2]
[358111149,1744733439340,-500.0,0.00017998,2]
[358111150,1744733439350,-500.0,0.00017998,2]
[358111151,1744733439360,-500.0,0.00017998,2]
[358111152,1744733439369,-573.24126322,0.00017998,2]
[358111153,1744733439378,-524.48685617,0.00017998,2]
[358111154,1744733439388,-500.0,0.00017998,2]
[358111155,1744733439398,-511.52586968,0.00017998,2]
[358111156,1744733439407,-500.0,0.00017998,2]
[358111157,1744733439417,-395.29189018,0.00017998,2]
[358111158,1744733439430,-104.70810982,0.00017998,2]
[358111159,1744733439439,-558.5430597,0.00017998,2]
[358111160,1744733439449,-500.0,0.00017998,2]
[358111161,1744733439458,-513.12125112,0.00017998,2]
[358111162,1744733439467,-500.7346098,0.00017998,2]
[358111163,1744733439477,-39.45703396,0.00017998,2]
[358111164,1744733439489,-460.54296604,0.00017998,2]
[358111165,1744733439498,-507.32447413,0.00017998,2]
[358111166,1744733439507,-500.0,0.00017998,2]
[358111167,1744733439517,-500.0,0.00017998,2]
[358111168,1744733439527,-501.14898559,0.00017998,2]
[358111169,1744733439536,-500.0,0.00017998,2]
[358111170,1744733439546,-43.16707999,0.00017998,2]
[358111171,1744733439558,-456.83292001,0.00017998,2]
[358111172,1744733439568,-500.0,0.00017998,2]
[358111173,1744733439577,-500.0,0.00017998,2]
[358111174,1744733439587,-500.0,0.00017998,2]
[358111175,1744733439597,-500.0,0.00017998,2]
[358111176,1744733439607,-500.0,0.00017998,2]
[358111177,1744733439618,-500.0,0.00017998,2]
[358111178,1744733439628,-500.0,0.00017998,2]
[358111179,1744733439637,-500.0,0.00017998,2]
[358111180,1744733439647,-529.25691027,0.00017998,2]
[358111181,1744733439657,-500.0,0.00017998,2]
[358111182,1744733439666,-500.0,0.00017998,2]
[358111183,1744733439675,-500.0,0.00017998,2]
[358111184,1744733439685,-500.0,0.00017998,2]
[358111185,1744733439695,-500.0,0.00017998,2]
[358111186,1744733439707,-547.52428571,0.00017998,2]
[358111187,1744733439717,-500.0,0.00017998,2]
[358111188,1744733439727,-500.0,0.00017998,2]